bitfinex/quotes_BTCUSD_20240715
["timestamp","ask_amount","ask_price","bid_price","bid_amount"]
[1721002071345,1.51258965,60960.0,60959.0,0.335003]
[1721002071772,1.51358965,60960.0,60959.0,0.335003]
[1721002071975,1.50887094,60960.0,60959.0,0.329003]
[1721002073369,1.50887094,60960.0,60959.0,0.333003]
[1721002074825,1.71133794,60960.0,60959.0,0.333003]
[1721002075166,1.71211341,60960.0,60959.0,0.333003]
[1721002075379,1.77211341,60960.0,60959.0,0.333003]
[1721002075589,1.77211009,60960.0,60959.0,0.333003]
[1721002076052,1.94234749,60960.0,60959.0,0.333003]
[1721002076711,1.77211009,60960.0,60959.0,0.333003]
[1721002077106,1.77111009,60960.0,60959.0,0.329003]
[1721002077275,1.77411009,60960.0,60959.0,0.329003]
[1721002077489,4.35657709,60960.0,60959.0,0.329003]
[1721002077641,4.14857709,60960.0,60959.0,0.329003]
[1721002077853,4.31581449,60960.0,60959.0,0.329003]
[1721002078068,4.52382631,60960.0,60959.0,0.329003]
[1721002078310,4.51582203,60960.0,60959.0,0.329003]
[1721002078479,4.31582203,60960.0,60959.0,0.329003]
[1721002078684,4.32382203,60960.0,60959.0,0.329003]
[1721002079165,4.69682203,60960.0,60959.0,0.329003]
[1721002079349,5.24708329,60960.0,60959.0,0.29610271]
[1721002079555,5.56133452,60960.0,60959.0,0.16605359]
[1721002079723,5.57549615,60960.0,60959.0,0.16605359]
[1721002079926,5.3361093,60960.0,60959.0,0.16605359]
[1721002080253,5.3391093,60960.0,60959.0,0.16605359]
[1721002080498,5.1688719,60960.0,60959.0,0.16605359]
[1721002080715,5.25570712,60960.0,60959.0,0.16605359]
[1721002081043,4.90257235,60960.0,60959.0,0.16605359]
[1721002081225,5.04599129,60960.0,60959.0,0.16605359]
[1721002081426,5.98992529,60960.0,60959.0,0.00877231]
[1721002081636,1.20397711,60951.0,60950.0,4.56125785]
[1721002081842,3.68615724,60951.0,60950.0,4.88939785]
[1721002082050,2.75742924,60951.0,60950.0,4.88939785]
[1721002082247,4.86742924,60951.0,60950.0,4.88939785]
[1721002082835,4.59318235,60951.0,60950.0,4.88939785]
[1721002083029,4.52018235,60951.0,60950.0,4.88939785]
[1721002083204,4.77088875,60951.0,60950.0,4.88939785]
[1721002083405,5.03339375,60951.0,60950.0,4.88939785]
[1721002083709,5.08197067,60951.0,60950.0,4.88939785]
[1721002083931,5.25682786,60951.0,60950.0,4.88939785]
[1721002084341,5.49591211,60951.0,60950.0,4.88939785]
[1721002084510,5.42706526,60951.0,60950.0,4.88939785]
[1721002084717,5.67913992,60951.0,60950.0,4.88939785]
[1721002084913,5.67513992,60951.0,60950.0,4.88939785]
[1721002085186,5.43606526,60951.0,60950.0,4.88939785]
[1721002085389,5.45006526,60951.0,60950.0,4.88939785]
[1721002086553,5.39935886,60951.0,60950.0,4.88939785]
[1721002087011,5.39935886,60951.0,60950.0,3.58439785]
[1721002087012,5.62078395,60951.0,60950.0,3.58439785]
[1721002087350,5.62078395,60951.0,60950.0,3.57458285]
[1721002087557,5.67149035,60951.0,60950.0,3.50598285]
[1721002087759,5.66249035,60951.0,60950.0,3.50598285]
[1721002088001,5.64849035,60951.0,60950.0,3.50598285]
[1721002088209,5.66249035,60951.0,60950.0,3.50598285]
[1721002088444,5.82649035,60951.0,60950.0,3.50598285]
[1721002088757,5.88704489,60951.0,60950.0,3.50598285]
[1721002088957,5.61178395,60951.0,60950.0,3.50598285]
[1721002089261,6.29778395,60951.0,60950.0,3.50598285]
[1721002089468,6.97053528,60951.0,60950.0,1.98731214]
[1721002089680,7.62679928,60951.0,60950.0,1.62697439]
[1721002089883,7.62679928,60951.0,60950.0,0.08310353]
[1721002089884,7.61279928,60951.0,60950.0,0.08310353]
[1721002090083,2.55484911,60931.0,60930.0,0.009152]
[1721002090288,4.93313888,60931.0,60930.0,0.337392]
[1721002090503,5.09648643,60931.0,60930.0,0.337392]
[1721002090700,5.62167043,60931.0,60930.0,0.337392]
[1721002090913,5.79190783,60931.0,60930.0,0.337392]
[1721002091413,5.62856028,60931.0,60930.0,0.337392]
[1721002091819,5.64256028,60931.0,60930.0,0.27353931]
[1721002092008,5.65656028,60931.0,60930.0,0.23368931]
[1721002092346,5.90515228,60931.0,60930.0,0.23368931]
[1721002092795,6.15215228,60931.0,60930.0,0.23368931]
[1721002093207,5.74586251,60931.0,60930.0,0.23368931]
[1721002093405,5.89248806,60931.0,60930.0,0.23368931]
[1721002093621,5.9064889,60931.0,60930.0,0.23368931]
[1721002093989,5.8924889,60931.0,60930.0,0.19444046]
[1721002094392,5.9064889,60931.0,60930.0,0.19444046]
[1721002094592,5.9204889,60931.0,60930.0,0.19444046]
[1721002094802,6.5924889,60931.0,60930.0,0.19444046]
[1721002095007,6.60965053,60931.0,60930.0,0.19444046]
[1721002095182,6.63765053,60931.0,60930.0,3.9e-07]
[1721002095383,4.52765053,60931.0,60930.0,3.9e-07]
[1721002096033,4.38102414,60931.0,60930.0,3.9e-07]
[1721002096328,4.52832612,60931.0,60930.0,3.9e-07]
[1721002096569,4.67312609,60931.0,60930.0,3.9e-07]
[1721002096948,3.08019811,60924.0,60914.0,0.51983811]
[1721002097152,5.55702578,60924.0,60923.0,0.337432]
[1721002097352,5.53286258,60924.0,60923.0,0.337432]
[1721002097574,5.46050009,60924.0,60923.0,0.337432]
[1721002097772,5.72726318,60924.0,60923.0,0.337432]
[1721002097975,5.72726318,60924.0,60923.0,0.29862039]
[1721002098153,5.64473749,60924.0,60923.0,0.21958039]
[1721002098351,5.94054964,60924.0,60923.0,0.21958039]
[1721002098556,5.84411789,60924.0,60923.0,0.21958039]
[1721002098921,5.84405392,60924.0,60923.0,0.21958039]
[1721002099578,5.75316582,60924.0,60923.0,0.21958039]
[1721002099778,5.80129602,60924.0,60923.0,0.21958039]
[1721002099954,5.81529602,60924.0,60923.0,0.21958039]
[1721002100129,5.80129602,60924.0,60923.0,0.21958039]
[1721002100533,5.75316582,60924.0,60923.0,0.21958039]
[1721002101090,5.59692842,60924.0,60923.0,0.21958039]
[1721002101564,5.09692842,60924.0,60923.0,0.21958039]
[1721002101816,5.59692842,60924.0,60923.0,0.21958039]
[1721002102020,4.91130642,60924.0,60923.0,0.21958039]
[1721002102240,4.91130642,60924.0,60923.0,0.36238039]
[1721002102241,3.27735295,60924.0,60923.0,0.36238039]
[1721002102431,0.58412738,60924.0,60923.0,0.36329339]
[1721002102633,0.71844794,60924.0,60923.0,0.36329339]
[1721002102840,0.114,60924.0,60923.0,0.36329339]
[1721002103257,0.3131485,60924.0,60923.0,0.36329339]
[1721002103385,0.43277623,60924.0,60923.0,0.36329339]
[1721002103589,0.71659352,60924.0,60923.0,0.36329339]
[1721002103788,0.97921552,60924.0,60923.0,0.36329339]
[1721002104060,1.84983752,60924.0,60923.0,0.36329339]
[1721002104333,1.84983752,60924.0,60923.0,0.22049339]
[1721002104334,2.49858188,60924.0,60923.0,0.22049339]
[1721002104537,2.57552942,60924.0,60923.0,0.22049339]
[1721002104778,2.58952942,60924.0,60923.0,0.22049339]
[1721002104988,2.59152942,60924.0,60923.0,0.22049339]
[1721002105190,2.57752942,60924.0,60923.0,0.22049339]
[1721002105391,2.61452942,60924.0,60923.0,0.22049339]
[1721002105722,2.60052942,60924.0,60923.0,0.22049339]
[1721002105926,3.08752942,60924.0,60923.0,0.22049339]
[1721002106148,3.18752942,60924.0,60923.0,0.22049339]
[1721002106343,3.17152942,60924.0,60923.0,0.22049339]
[1721002106790,2.96202906,60924.0,60923.0,0.22049339]
[1721002107229,3.15203434,60924.0,60923.0,0.22049339]
[1721002107580,3.24587134,60924.0,60923.0,0.22049339]
[1721002107781,2.94587134,60924.0,60923.0,0.22049339]
[1721002108105,3.03187134,60924.0,60923.0,0.22049339]
[1721002108306,3.25496691,60924.0,60923.0,0.22049339]
[1721002108539,3.40626384,60924.0,60923.0,0.22049339]
[1721002108925,3.40673701,60924.0,60923.0,0.22049339]
[1721002111520,3.66935901,60924.0,60923.0,0.22049339]
[1721002112151,3.60550868,60924.0,60923.0,0.22049339]
[1721002112360,3.25624024,60924.0,60923.0,0.22049339]
[1721002112562,3.75624024,60924.0,60923.0,0.22049339]
[1721002113530,4.06706247,60924.0,60923.0,0.22049339]
[1721002113737,4.00486224,60924.0,60923.0,0.22049339]
[1721002113947,3.80447596,60924.0,60923.0,0.22049339]
[1721002114153,3.79047596,60924.0,60923.0,0.22049339]
[1721002114571,3.74224024,60924.0,60923.0,0.22049339]
[1721002114882,3.75624024,60924.0,60923.0,0.22049339]
[1721002115674,4.19693275,60924.0,60923.0,0.15579979]
[1721002115917,4.19968831,60924.0,60923.0,0.15579979]
[1721002116648,4.18568831,60924.0,60923.0,0.15579979]
[1721002116878,4.19968831,60924.0,60923.0,0.15579979]
[1721002117074,4.29231648,60924.0,60923.0,0.15579979]
[1721002117626,4.27831648,60924.0,60923.0,0.15579979]
[1721002117988,4.29231648,60924.0,60923.0,0.15579979]
[1721002118135,4.46255388,60924.0,60923.0,0.15579979]
[1721002118345,6.01055388,60924.0,60923.0,0.15579979]
[1721002118556,6.01204057,60924.0,60923.0,0.15579979]
[1721002119179,6.13274209,60924.0,60923.0,0.15579979]
[1721002119379,5.57918117,60924.0,60923.0,0.15579979]
[1721002119585,5.84180317,60924.0,60923.0,0.15579979]
[1721002119794,5.57918117,60924.0,60923.0,0.15579979]
[1721002120118,5.56518117,60924.0,60923.0,0.15579979]
[1721002120550,5.57918117,60924.0,60923.0,0.15579979]
[1721002120789,5.99804057,60924.0,60923.0,0.15579979]
[1721002120996,6.01204057,60924.0,60923.0,0.15579979]
[1721002121726,5.59444476,60924.0,60923.0,0.15579979]
[1721002121927,5.7765362,60924.0,60923.0,0.15579979]
[1721002122342,5.92155344,60924.0,60923.0,0.15579979]
[1721002122842,5.75131604,60924.0,60923.0,0.15579979]
[1721002123290,5.25131604,60924.0,60923.0,0.15579979]
[1721002123483,5.6062988,60924.0,60923.0,0.15579979]
[1721002123711,5.75149059,60924.0,60923.0,0.15579979]
[1721002124156,5.57849059,60924.0,60923.0,0.15579979]
[1721002124374,3.81788872,60924.0,60923.0,0.30229979]
[1721002124736,3.58051072,60924.0,60923.0,0.30229979]
[1721002124951,4.08051072,60924.0,60923.0,0.30229979]
[1721002125166,4.06651072,60924.0,60923.0,0.30229979]
[1721002125368,4.10519748,60924.0,60923.0,0.30229979]
[1721002125565,4.05838907,60924.0,60923.0,0.30229979]
[1721002125774,3.57238907,60924.0,60923.0,0.30229979]
[1721002126025,4.17238907,60924.0,60923.0,0.30229979]
[1721002126240,2.76576707,60924.0,60923.0,0.30229979]
[1721002126441,2.47076707,60924.0,60923.0,0.30229979]
[1721002126644,2.98476707,60924.0,60923.0,0.30229979]
[1721002126866,2.97076707,60924.0,60923.0,0.30229979]
[1721002127080,2.48476707,60924.0,60923.0,0.30229979]
[1721002127256,1.75952307,60924.0,60923.0,0.30229979]
[1721002127458,0.71196398,60924.0,60923.0,0.30229979]
[1721002127664,0.96447525,60924.0,60923.0,0.30229979]
[1721002127909,1.20285988,60924.0,60923.0,0.30229979]
[1721002128079,1.10589698,60924.0,60923.0,0.30229979]
[1721002128286,0.96454153,60924.0,60923.0,0.30229979]
[1721002128601,1.07789698,60924.0,60923.0,0.30229979]
[1721002128800,1.10589698,60924.0,60923.0,0.30229979]
[1721002129406,1.09189698,60924.0,60923.0,0.30229979]
[1721002129582,1.10389698,60924.0,60923.0,0.30229979]
[1721002129987,0.70996398,60924.0,60923.0,0.30229979]
[1721002130187,0.61438037,60924.0,60923.0,0.30229979]
[1721002130392,0.50703625,60924.0,60923.0,0.30267206]
[1721002130616,0.22388687,60924.0,60923.0,0.30267206]
[1721002130812,0.40498492,60924.0,60923.0,0.30267206]
[1721002131103,0.30788775,60924.0,60923.0,0.30267206]
[1721002131319,0.32592643,60924.0,60923.0,0.30267206]
[1721002131523,0.42602538,60924.0,60923.0,0.30267206]
[1721002131670,0.3300245,60924.0,60923.0,0.30267206]
[1721002131872,0.42302538,60924.0,60923.0,0.30267206]
[1721002132199,0.3410245,60924.0,60923.0,0.30267206]
[1721002132431,0.31592643,60924.0,60923.0,0.30267206]
[1721002132802,0.76946634,60924.0,60923.0,0.30429979]
[1721002133017,1.03208834,60924.0,60923.0,0.30429979]
[1721002133177,1.03208834,60924.0,60923.0,0.30229979]
[1721002133178,1.29471034,60924.0,60923.0,0.30229979]
[1721002133377,1.29271034,60924.0,60923.0,0.30229979]
[1721002133591,1.29471034,60924.0,60923.0,0.30429979]
[1721002133968,1.29271034,60924.0,60923.0,0.30429979]
[1721002134326,1.29889419,60924.0,60923.0,0.30429979]
[1721002134837,1.29972419,60924.0,60923.0,0.30229979]
[1721002135242,1.73258359,60924.0,60923.0,0.22089979]
[1721002135444,3.90258359,60924.0,60923.0,0.22089979]
[1721002135629,3.74385802,60924.0,60923.0,0.22089979]
[1721002135827,2.35072419,60924.0,60923.0,0.22189979]
[1721002136217,1.22810219,60924.0,60923.0,0.30479979]
[1721002136433,1.15410219,60924.0,60923.0,0.30379979]
[1721002136601,1.03210219,60924.0,60923.0,0.30479979]
[1721002136804,1.03710219,60924.0,60923.0,0.30479979]
[1721002137042,1.29972419,60924.0,60923.0,0.30479979]
[1721002137214,1.29472419,60924.0,60923.0,0.30479979]
[1721002137459,1.18798036,60924.0,60923.0,0.30479979]
[1721002137592,1.30143885,60924.0,60923.0,0.30479979]
[1721002137941,1.29646421,60924.0,60923.0,0.30479979]
[1721002138145,1.29646421,60924.0,60923.0,0.30379979]
[1721002138347,1.29646421,60924.0,60923.0,0.30479979]
[1721002138553,1.30146421,60924.0,60923.0,0.30479979]
[1721002139267,1.30146421,60924.0,60923.0,0.30379979]
[1721002139546,1.30146421,60924.0,60923.0,0.30479979]
[1721002139748,1.29646421,60924.0,60923.0,0.30479979]
[1721002140126,1.30146421,60924.0,60923.0,0.30479979]
[1721002140329,1.29646421,60924.0,60923.0,0.30479979]
[1721002140512,1.10608395,60924.0,60923.0,0.30479979]
[1721002140888,3.75174183,60924.0,60923.0,0.22189979]
[1721002141036,3.94674183,60924.0,60923.0,0.15679979]
[1721002141262,4.27474183,60924.0,60923.0,0.15679979]
[1721002141458,4.99263483,60924.0,60923.0,0.15679979]
[1721002141662,4.99263483,60924.0,60923.0,0.15579979]
[1721002142043,4.99263483,60924.0,60923.0,0.15679979]
[1721002142547,5.2317402,60924.0,60923.0,0.15579979]
[1721002142745,5.2267402,60924.0,60923.0,0.15579979]
[1721002142930,4.81076058,60924.0,60923.0,0.15579979]
[1721002143129,5.25378744,60924.0,60923.0,0.15579979]
[1721002143398,4.98671933,60924.0,60923.0,0.15579979]
[1721002143726,5.00071933,60924.0,60923.0,0.15579979]
[1721002143959,5.26334133,60924.0,60923.0,0.15579979]
[1721002144707,5.27734133,60924.0,60923.0,0.15579979]
[1721002144910,5.26334133,60924.0,60923.0,0.15579979]
[1721002145122,5.00071933,60924.0,60923.0,0.15579979]
[1721002145353,5.01471933,60924.0,60923.0,0.15579979]
[1721002145922,4.98671933,60924.0,60923.0,0.15579979]
[1721002146342,5.01649253,60924.0,60923.0,0.15579979]
[1721002146541,5.26511453,60924.0,60923.0,0.15579979]
[1721002147146,5.01649253,60924.0,60923.0,0.15579979]
[1721002147346,5.02604249,60924.0,60923.0,0.15579979]
[1721002147767,5.01204249,60924.0,60923.0,0.15579979]
[1721002147928,5.27466449,60924.0,60923.0,0.15579979]
[1721002148301,5.26066449,60924.0,60923.0,0.15579979]
[1721002148594,5.01204249,60924.0,60923.0,0.15579979]
[1721002149060,4.84180509,60924.0,60923.0,0.15579979]
[1721002149469,4.76401093,60924.0,60923.0,0.15579979]
[1721002149602,4.84320578,60924.0,60923.0,0.15579979]
[1721002149791,4.65007314,60924.0,60923.0,0.15579979]
[1721002150015,4.76780697,60924.0,60923.0,0.15579979]
[1721002150213,4.78180697,60924.0,60923.0,0.15579979]
[1721002150492,4.85238172,60924.0,60923.0,0.15579979]
[1721002150693,4.83838172,60924.0,60923.0,0.15579979]
[1721002151220,5.11500372,60924.0,60923.0,0.15579979]
[1721002151397,4.85238172,60924.0,60923.0,0.15579979]
[1721002151550,4.83838172,60924.0,60923.0,0.15579979]
[1721002151954,4.85238172,60924.0,60923.0,0.15579979]
[1721002152546,4.65924789,60924.0,60923.0,0.15579979]
[1721002152723,4.85206278,60924.0,60923.0,0.15579979]
[1721002153996,4.78148803,60924.0,60923.0,0.15579979]
[1721002154174,4.76748803,60924.0,60923.0,0.15579979]
[1721002154656,4.75348803,60924.0,60923.0,0.15579979]
[1721002154880,4.76748803,60924.0,60923.0,0.15579979]
[1721002155152,4.76748803,60924.0,60914.0,0.009152]
[1721002155153,2.56145111,60915.0,60914.0,0.009152]
[1721002155390,5.1507996,60915.0,60914.0,0.009152]
[1721002155628,5.61815207,60915.0,60914.0,0.337482]
[1721002155845,5.64228655,60915.0,60914.0,0.337482]
[1721002156088,5.82968558,60915.0,60914.0,0.337482]
[1721002156437,6.0315326,60915.0,60914.0,0.320322]
[1721002156838,6.73132953,60915.0,60914.0,0.320322]
[1721002157075,6.91666947,60915.0,60914.0,0.320322]
[1721002157310,7.44371203,60915.0,60914.0,0.287324]
[1721002157563,2.50170311,60902.0,60898.0,0.009152]
[1721002157840,1.23633411,60896.0,60895.0,0.05872925]
[1721002158067,3.92587877,60896.0,60895.0,0.38715925]
[1721002158782,3.95165518,60896.0,60895.0,0.38715925]
[1721002159027,3.95139361,60896.0,60895.0,0.38715925]
[1721002159268,4.12163099,60896.0,60895.0,0.38715925]
[1721002159511,4.12155913,60896.0,60895.0,0.38715925]
[1721002159953,3.95132175,60896.0,60895.0,0.38715925]
[1721002160913,0.51909402,60896.0,60895.0,0.38715925]
[1721002161167,0.50731761,60896.0,60895.0,0.46455925]
[1721002161421,0.64247678,60896.0,60895.0,0.46455925]
[1721002161622,1.03505934,60896.0,60895.0,0.46455925]
[1721002162065,0.84159111,60896.0,60895.0,0.46455925]
[1721002162298,3.40867391,60896.0,60895.0,0.46455925]
[1721002162539,3.39467391,60896.0,60895.0,0.46455925]
[1721002162934,4.52015991,60896.0,60895.0,0.32843]
[1721002163183,4.61715991,60896.0,60895.0,0.32843]
[1721002163411,4.75939731,60896.0,60895.0,0.32843]
[1721002163638,4.58915991,60896.0,60895.0,0.32843]
[1721002163874,4.60315991,60896.0,60895.0,0.32843]
[1721002164117,4.58915991,60896.0,60895.0,0.32843]
[1721002164387,4.28041691,60896.0,60895.0,0.32843]
[1721002164632,1.46767391,60896.0,60895.0,0.47433]
[1721002164867,1.44298791,60896.0,60895.0,0.47433]
[1721002165114,1.94298791,60896.0,60895.0,0.47433]
[1721002165349,1.59033411,60896.0,60895.0,0.47433]
[1721002165597,1.94229991,60896.0,60895.0,0.47433]
[1721002165826,1.79698949,60896.0,60895.0,0.47433]
[1721002166055,1.78298949,60896.0,60895.0,0.47433]
[1721002166253,3.89298949,60896.0,60895.0,0.47433]
[1721002166513,4.15573249,60896.0,60895.0,0.475243]
[1721002166733,4.23873249,60896.0,60895.0,0.475243]
[1721002166949,4.87171289,60896.0,60895.0,0.329343]
[1721002167376,4.30028128,60896.0,60895.0,0.329343]
[1721002167586,4.86839076,60896.0,60895.0,0.329343]
[1721002167801,4.85439076,60896.0,60895.0,0.329343]
[1721002168019,3.82141036,60896.0,60895.0,0.329343]
[1721002168235,4.06453136,60896.0,60895.0,0.329343]
[1721002168452,3.94165916,60896.0,60895.0,0.468843]
[1721002168664,3.60719811,60896.0,60895.0,0.468843]
[1721002168879,3.88294123,60896.0,60895.0,0.468843]
[1721002169093,2.83245511,60896.0,60895.0,0.468843]
[1721002169351,1.45720001,60896.0,60895.0,0.468843]
[1721002169562,2.30594301,60896.0,60895.0,0.468843]
[1721002169782,1.79194301,60896.0,60895.0,0.468843]
[1721002169997,2.20594301,60896.0,60895.0,0.468843]
[1721002170226,2.19194301,60896.0,60895.0,0.468843]
[1721002170459,2.20594301,60896.0,60895.0,0.468843]
[1721002170687,0.75259301,60896.0,60895.0,0.468843]
[1721002170895,0.87352953,60896.0,60895.0,0.468843]
[1721002171110,2.82797216,60896.0,60895.0,0.468843]
[1721002171323,3.30657341,60896.0,60895.0,0.468843]
[1721002171529,3.38157151,60896.0,60895.0,0.468843]
[1721002171763,3.37057151,60896.0,60895.0,0.468843]
[1721002171978,3.5236353,60896.0,60895.0,0.468843]
[1721002172199,1.77844561,60896.0,60895.0,0.390543]
[1721002172615,2.28744561,60896.0,60895.0,0.390543]
[1721002172823,2.29544561,60896.0,60895.0,0.390543]
[1721002173029,2.00970261,60896.0,60895.0,0.390543]
[1721002173248,2.05570261,60896.0,60895.0,0.390543]
[1721002173448,2.34144561,60896.0,60895.0,0.390543]
[1721002173840,2.35544561,60896.0,60895.0,0.390543]
[1721002174090,2.48651146,60896.0,60895.0,0.390543]
[1721002174302,2.49251146,60896.0,60895.0,0.390543]
[1721002174528,2.66274886,60896.0,60895.0,0.390543]
[1721002174957,2.67674886,60896.0,60895.0,0.390543]
[1721002175172,2.66274886,60896.0,60895.0,0.390543]
[1721002175633,2.03870261,60896.0,60895.0,0.390543]
[1721002175834,2.03870261,60896.0,60895.0,0.466443]
[1721002175835,2.01570261,60896.0,60895.0,0.466443]
[1721002176289,2.26444561,60896.0,60895.0,0.466443]
[1721002176511,2.07570261,60896.0,60895.0,0.466443]
[1721002176719,2.33844561,60896.0,60895.0,0.329343]
[1721002176939,2.07570261,60896.0,60895.0,0.329343]
[1721002177172,2.01570261,60896.0,60895.0,0.474643]
[1721002177387,2.00170261,60896.0,60895.0,0.474643]
[1721002177836,2.01570261,60896.0,60895.0,0.474643]
[1721002178284,2.0129384,60896.0,60895.0,0.474643]
[1721002178508,2.07686972,60896.0,60895.0,0.474643]
[1721002178706,2.09047679,60896.0,60895.0,0.474643]
[1721002179141,2.15865194,60896.0,60895.0,0.329343]
[1721002179355,2.81639494,60896.0,60895.0,0.329343]
[1721002179579,2.99368502,60896.0,60895.0,0.329343]
[1721002179788,3.27042212,60896.0,60895.0,0.329343]
[1721002180000,3.25642212,60896.0,60895.0,0.329343]
[1721002180212,3.27042212,60896.0,60895.0,0.329343]
[1721002180432,3.07036051,60896.0,60895.0,0.329343]
[1721002180640,3.05636051,60896.0,60895.0,0.329343]
[1721002180849,3.27036051,60896.0,60895.0,0.329343]
[1721002181053,3.07036051,60896.0,60895.0,0.329343]
[1721002181258,3.05636051,60896.0,60895.0,0.329343]
[1721002181462,3.05639682,60896.0,60895.0,0.329343]
[1721002181874,2.89313794,60896.0,60895.0,0.329343]
[1721002182283,3.10713794,60896.0,60895.0,0.329343]
[1721002182490,3.20713794,60896.0,60895.0,0.329343]
[1721002182699,3.19313794,60896.0,60895.0,0.329343]
[1721002183324,3.20713794,60896.0,60895.0,0.329343]
[1721002187910,3.20619918,60896.0,60895.0,0.329343]
[1721002188332,3.99418927,60896.0,60895.0,0.329343]
[1721002188766,3.99418927,60896.0,60895.0,0.32929482]
[1721002188767,4.36750549,60896.0,60895.0,0.32929482]
[1721002188982,4.1289871,60896.0,60895.0,0.29193161]
[1721002189218,4.1429871,60896.0,60895.0,0.29193161]
[1721002189454,3.8802441,60896.0,60895.0,0.23501904]
[1721002189682,3.8662441,60896.0,60895.0,0.23501904]
[1721002189890,4.0522441,60896.0,60895.0,0.23501904]
[1721002190104,3.68566895,60896.0,60895.0,0.23501904]
[1721002190336,4.16414453,60896.0,60895.0,0.23501904]
[1721002190552,3.28402403,60896.0,60895.0,0.23501904]
[1721002190773,3.24058728,60896.0,60895.0,0.23501904]
[1721002190999,5.53482468,60896.0,60895.0,0.23501904]
[1721002191216,5.52277086,60896.0,60895.0,0.23501904]
[1721002191437,5.71218484,60896.0,60895.0,0.23501904]
[1721002191644,6.06201593,60896.0,60895.0,0.23501904]
[1721002191858,5.82349684,60896.0,60895.0,0.23501904]
[1721002192093,6.80023984,60896.0,60895.0,0.23501904]
[1721002192553,6.83273725,60896.0,60895.0,0.23501904]
[1721002192778,6.86305789,60896.0,60895.0,0.23501904]
[1721002193011,6.87705789,60896.0,60895.0,0.23501904]
[1721002193225,6.84673725,60896.0,60895.0,0.23501904]
[1721002193473,6.81874122,60896.0,60895.0,0.23501904]
[1721002193679,6.84674122,60896.0,60895.0,0.23501904]
[1721002193900,7.09548422,60896.0,60895.0,0.21131714]
[1721002194114,6.84267683,60896.0,60895.0,0.21131714]
[1721002194328,7.1083945,60896.0,60895.0,0.21131714]
[1721002194966,7.0943945,60896.0,60895.0,0.21131714]
[1721002195178,3.00529311,60882.0,60881.0,0.025]
[1721002195388,5.66155428,60882.0,60881.0,0.025]
[1721002195597,5.76155428,60882.0,60881.0,0.35351]
[1721002195805,5.95479168,60882.0,60881.0,0.35351]
[1721002196018,6.21042878,60882.0,60881.0,0.35351]
[1721002196224,6.11216581,60882.0,60881.0,0.35351]
[1721002196427,6.14016581,60882.0,60881.0,0.35351]
[1721002196645,6.36464128,60882.0,60881.0,0.35351]
[1721002196852,6.29832906,60882.0,60881.0,0.35351]
[1721002197059,6.31232906,60882.0,60881.0,0.35351]
[1721002197273,6.06062787,60882.0,60881.0,0.35351]
[1721002197479,4.96485602,60882.0,60881.0,0.35351]
[1721002197687,4.76485602,60882.0,60881.0,0.35351]
[1721002197891,5.45085602,60882.0,60881.0,0.35351]
[1721002198529,4.59185602,60882.0,60881.0,0.35351]
[1721002198745,2.14630163,60882.0,60881.0,0.49691]
[1721002198966,2.0330497,60882.0,60881.0,0.49691]
[1721002199171,2.23230163,60882.0,60881.0,0.49691]
[1721002199388,1.74630163,60882.0,60881.0,0.49691]
[1721002199595,2.14630163,60882.0,60881.0,0.49691]
[1721002199806,2.11830163,60882.0,60881.0,0.49691]
[1721002200025,1.60569563,60882.0,60881.0,0.49691]
[1721002200228,1.88249863,60882.0,60881.0,0.49691]
[1721002200435,1.49579114,60882.0,60881.0,0.49691]
[1721002200644,0.93479114,60882.0,60881.0,0.49691]
[1721002201088,1.34307526,60882.0,60881.0,0.49691]
[1721002201289,1.66366648,60882.0,60881.0,0.49691]
[1721002201502,1.80620014,60882.0,60881.0,0.49691]
[1721002201716,2.26900314,60882.0,60881.0,0.35351]
[1721002201925,2.56900314,60882.0,60881.0,0.35351]
[1721002202163,2.73924054,60882.0,60881.0,0.35351]
[1721002202387,2.96388837,60882.0,60881.0,0.35351]
[1721002202598,2.77213697,60882.0,60881.0,0.35351]
[1721002202805,2.95043963,60882.0,60881.0,0.35351]
[1721002203247,2.99742746,60882.0,60881.0,0.35351]
[1721002203463,3.45139515,60882.0,60881.0,0.31815901]
[1721002203691,3.66182007,60882.0,60881.0,0.31815901]
[1721002203907,3.72234091,60882.0,60881.0,0.31815901]
[1721002204328,4.20834091,60882.0,60881.0,0.31815901]
[1721002204536,4.18540959,60882.0,60881.0,0.31815901]
[1721002204758,4.17140959,60882.0,60881.0,0.31815901]
[1721002204977,3.44424855,60882.0,60881.0,0.31815901]
[1721002205180,4.64424855,60882.0,60881.0,0.31815901]
[1721002205331,4.65824855,60882.0,60881.0,0.31815901]
[1721002205541,4.14232681,60882.0,60881.0,0.31815901]
[1721002205764,3.89192244,60882.0,60881.0,0.31815901]
[1721002206116,4.37792244,60882.0,60881.0,0.31815901]
[1721002206323,4.46009884,60882.0,60881.0,0.31815901]
[1721002206532,4.39442244,60882.0,60881.0,0.31815901]
[1721002206716,4.38042244,60882.0,60881.0,0.31815901]
[1721002206918,4.34493513,60882.0,60881.0,0.31815901]
[1721002207515,4.35893513,60882.0,60881.0,0.31815901]
[1721002207710,3.81517253,60882.0,60881.0,0.31815901]
[1721002207907,3.63386294,60882.0,60881.0,0.31815901]
[1721002208083,3.88634423,60882.0,60881.0,0.31815901]
[1721002208286,3.93643468,60882.0,60881.0,0.31815901]
[1721002208484,3.93643468,60882.0,60881.0,0.28634311]
[1721002208692,4.06803947,60882.0,60881.0,0.28634311]
[1721002208891,4.09028611,60882.0,60881.0,0.28634311]
[1721002209119,4.31461122,60882.0,60881.0,0.28634311]
[1721002209322,4.06228611,60882.0,60881.0,0.28634311]
[1721002209495,4.09028611,60882.0,60881.0,0.28634311]
[1721002209863,3.88512142,60882.0,60881.0,0.28634311]
[1721002210257,5.86212142,60882.0,60881.0,0.28634311]
[1721002210459,5.84812142,60882.0,60881.0,0.28634311]
[1721002210691,6.54812142,60882.0,60881.0,0.28634311]
[1721002210897,6.73737801,60882.0,60881.0,0.28634311]
[1721002211070,6.54254117,60882.0,60881.0,0.28634311]
[1721002211509,6.55654117,60882.0,60881.0,0.28634311]
[1721002211925,6.54254117,60882.0,60881.0,0.28634311]
[1721002212129,6.54239502,60882.0,60881.0,0.28634311]
[1721002212336,6.55639502,60882.0,60881.0,0.28634311]
[1721002212544,6.50474719,60882.0,60881.0,0.28634311]
[1721002212746,6.67153423,60882.0,60881.0,0.28634311]
[1721002212954,6.71445787,60882.0,60881.0,0.28634311]
[1721002213159,6.72845787,60882.0,60881.0,0.28634311]
[1721002213586,6.72845787,60882.0,60881.0,0.25724687]
[1721002213812,6.71445787,60882.0,60881.0,0.25724687]
[1721002214010,6.7801057,60882.0,60881.0,0.25724687]
[1721002214220,6.7661057,60882.0,60881.0,0.25724687]
[1721002214433,6.55294466,60882.0,60881.0,0.25724687]
[1721002214640,6.80525753,60882.0,60881.0,0.25724687]
[1721002214849,6.04245453,60882.0,60881.0,0.25724687]
[1721002215096,5.80414166,60882.0,60881.0,0.40304687]
[1721002215277,5.79468023,60882.0,60881.0,0.40304687]